[Event "1st Doppelbauer Kiel IM 2022"]
[Site "Kiel"]
[Date "2022.07.02"]
[Round "5.2"]
[White "Ermitsch, Magnus"]
[Black "Zavgorodniy, Sergiy"]
[Result "0-1"]
[ECO "C41"]
[WhiteElo "2222"]
[BlackElo "2423"]
[Annotator "TA"]
[PlyCount "73"]
[EventDate "2022.06.30"]
[EventType "tourn"]
[EventCountry "GER"]
[SourceTitle "playchess.com"]
[Source "ChessBase"]
[SourceQuality "1"]
[TimeControl "40/5400+30:1800+30"]

{[%evp 18,73,48,55,64,51,80,97,93,60,129,16,47,3,3,0,0,-28,24,-41,-51,-43,-3,-129,-132,-154,-147,-498,-492,-534,-531,-509,-498,-613,-615,-600,-566,-540,-435,-443,-415,-433,-425,-443,-439,-430,-430,-641,-637,-814,-727,-727,-727,-847,-756,-727,-738,-760]} 1. e4 {[%emt 0:00:08]} e5 {[%emt 0:00:12]} 2. Nf3 {[%emt 0:00:09]} d6 {[%emt 0:00:08]} 3. d4 {[%emt 0:00:08]} exd4 {[%emt 0:00:08]} 4. Nxd4 {[%emt 0:00:07]} Nf6 {[%emt 0:00:09]} 5. Nc3 {[%emt 0:00:08]} Be7 {[%emt 0:00:17]} 6. Bf4 {[%emt 0:00:12]} O-O {[%emt 0:00:41]} 7. Qd2 {[%emt 0:00:09]} Nc6 {[%emt 0:00:27]} 8. O-O-O {[%emt 0:00:16]} Nxd4 {[%emt 0:00:28]} 9. Qxd4 {[%emt 0:00:14]} Be6 {[%emt 0:00:06]} 10. f3 {[%emt 0:00:40]} Nd7 {[%emt 0:00:19] C41: Philidor Defence.} 11. g4 {[%emt 0:02:37][%cal Bg2g4,Bg4g5][%mdl 32] [#]} Nc5 $146 {[%emt 0:24:14]} ({Predecessor:} 11... Bg5 12. Qd2 Bxf4 13. Qxf4 Qh4 14. Qg3 Qxg3 15. hxg3 h6 16. Nb5 Rfc8 17. Nd4 Re8 18. Be2 {½-½ (83) Li,C (2613)-Bu,X (2682) China 2010}) 12. Kb1 {[%emt 0:02:30]} c6 {[%emt 1:09:21] White is better.} 13. g5 {[%emt 0:10:53]} b5 {[%emt 0:00:00]} (13... f6 $14) 14. Ne2 {[%emt 0:03:38]} ({Weaker is} 14. Bxd6 Bxd6 15. Qxd6 Qb6 $15) (14. h4 $16) 14... d5 {[%emt 0:00:00]} 15. Bg2 {[%emt 0:13:14]} dxe4 {[%emt 0:00:00]} 16. fxe4 {[%emt 0:04:30]} Qa5 $36 {[%emt 0:00:00][%mdl 2048] Black has good play.} 17. b3 {[%emt 0:04:14]} (17. Nc1 $5 {[%cal Rb2b4]} Rfd8 18. Qe3 $11) 17... Rad8 {[%emt 0:00:00]} ({Black should try} 17... Bg4 18. Qf2 Ne6) 18. Qc3 {[%emt 0:02:21]} (18. Qe3 $11) 18... Qxc3 $15 {[%emt 0:00:00]} 19. Nxc3 {[%emt 0:00:01]} b4 {[%emt 0:00:00]} (19... Bg4 $5 {[%cal Rg4d1]} 20. Rxd8 Rxd8 $15) 20. Ne2 {[%emt 0:04:26]} (20. Rxd8 $11 {keeps the balance.} Rxd8 21. Nd1) 20... Bg4 $17 {[%emt 0:00:00][%cal Be6g4,Bg4f3,Bf3e4,Be4d3][%mdl 32]} 21. Rde1 {[%emt 0:02:16]} Ne6 {[%emt 0:00:00] [#] Strongly threatening ...Bxe2. Black is more active.} 22. Be5 $2 {[%emt 0:07:07][%mdl 8192] Loses the game.} (22. Bc1 $17) 22... Rd2 $19 {[%emt 0:00:00]} 23. Bf1 {[%emt 0:01:58]} Bf3 {[%emt 0:00:00]} 24. Rg1 {[%emt 0:00:11]} Bc5 {[%emt 0:00:00]} 25. Kc1 {[%emt 0:03:37]} Rfd8 {[%emt 0:00:00]} 26. Rg3 {[%emt 0:01:33]} Bxe4 {[%emt 0:00:00]} 27. Rd3 {[%emt 0:01:16]} Bxd3 {[%emt 0:00:00]} 28. Kxd2 {[%emt 0:01:25]} Bb5+ {[%emt 0:00:00]} 29. Kc1 {[%emt 0:00:30]} Bf2 {[%emt 0:00:00] Black is clearly winning.} 30. Bg3 {[%emt 0:00:33]} Bxe1 {[%emt 0:00:00]} 31. Bxe1 {[%emt 0:00:02]} a5 {[%emt 0:00:00]} 32. a4 {[%emt 0:00:24]} (32. h4 $142) 32... bxa3 {[%emt 0:00:00][%cal Bb4a3,Ba3a2][%mdl 32]} 33. c4 {[%emt 0:00:05]} a2 {[%emt 0:00:00]} 34. Bc3 {[%emt 0:00:04] [#]} Rd3 $1 {[%emt 0:00:00]} 35. Ba1 {[%emt 0:01:13]} (35. Kb2 Rd1) 35... Rxb3 {[%emt 0:00:00] And now ...Rb1+ would win.} 36. Nc3 {[%emt 0:00:00] Inhibits Rb1+.} Ba6 {[%emt 0:00:00]} 37. Nxa2 {[%emt 0:00:07] Weighted Error Value: White=0.83/Black=0.23 (precise)} 0-1

[Event "1st Doppelbauer Kiel IM 2022"]
[Site "Kiel"]
[Date "2022.07.02"]
[Round "5.3"]
[White "Fischer, Daniel"]
[Black "Lanka, Zigurds"]
[Result "1/2-1/2"]
[ECO "A34"]
[WhiteElo "2367"]
[BlackElo "2397"]
[Annotator "TA"]
[PlyCount "72"]
[EventDate "2022.06.30"]
[EventType "tourn"]
[EventCountry "GER"]
[SourceTitle "playchess.com"]
[Source "ChessBase"]
[SourceQuality "1"]
[TimeControl "40/5400+30:1800+30"]

{[%evp 11,72,51,60,44,53,45,63,62,75,75,127,70,62,68,74,39,12,30,39,26,33,38,19,26,27,40,35,26,23,6,31,0,44,59,133,129,137,102,128,12,70,10,9,9,8,17,59,58,55,52,66,65,81,77,77,83,66,66,67,75,112,56,56]} 1. e4 {[%emt 0:00:03] Szabo,Kr} c5 {[%emt 0:01:19]} 2. Nf3 {[%emt 0:00:07]} a6 {[%emt 0:00:12]} 3. c4 {[%emt 0:00:16]} b6 {[%emt 0:00:25]} 4. d4 {[%emt 0:02:57]} cxd4 {[%emt 0:00:18]} 5. Nxd4 {[%emt 0:00:04]} Bb7 {[%emt 0:00:11]} 6. Nc3 {[%emt 0:00:16]} e6 {[%emt 0:00:10]} 7. Be3 {[%emt 0:01:48] A34: Symmetrical English: 2 Nc3, lines with ...d5.} Nf6 {[%emt 0:01:11]} 8. f3 {[%emt 0:02:27]} Qc7 {[%emt 0:00:34]} 9. Rc1 {[%emt 0:04:49]} Bd6 {[%emt 0:02:01] [#]} 10. Qd2 $146 {[%emt 0:22:57]} ({Predecessor:} 10. g3 h5 11. Qd2 Be7 12. Be2 d6 13. O-O Nbd7 14. Qe1 O-O 15. Qf2 Ne5 16. Rfd1 {½-½ (49) Radjabov,T (2742)-Artemiev,V (2692) Tbilisi 2017 CBM 181 [Szabo,Kr]}) 10... Bxh2 {[%emt 0:02:14] [#]} (10... Bf8 $142) 11. g4 {[%emt 0:08:01]} (11. Nd5 $1 $16 {[%cal Rd5c7][%mdl 512]} exd5 (11... Bg3+ 12. Kd1) 12. cxd5) 11... Bg3+ $14 {[%emt 0:02:29]} 12. Kd1 {[%emt 0:00:03] aiming for g5. White is more active.} Nc6 {[%emt 0:14:13]} 13. g5 {[%emt 0:07:30]} (13. Nde2 $5 {[%cal Rg4g5]}) 13... Nxd4 $1 {[%emt 0:03:05]} 14. Qxd4 {[%emt 0:07:48]} Ng8 {[%emt 0:08:39]} 15. Na4 {[%emt 0:05:38]} ({But not} 15. Qxb6 Qxb6 16. Bxb6 Bf4 $15) ({Much weaker is} 15. Qxg7 Be5 16. Bf4 Bxf4 $15) 15... Be5 {[%emt 0:02:14]} 16. Qxb6 {[%emt 0:00:40]} Bc6 {[%emt 0:02:05]} 17. Qxc7 {[%emt 0:04:14]} Bxa4+ {[%emt 0:00:36]} 18. b3 {[%emt 0:00:02]} Bxb3+ {[%emt 0:01:11]} 19. axb3 {[%emt 0:00:09][%cal Ba2b3,Bb3b4,Bb4b5][%mdl 32]} Bxc7 {[%emt 0:00:06]} 20. Ra1 {[%emt 0:10:42]} Ne7 {[%emt 0:04:54]} 21. c5 {[%emt 0:02:58][%mdl 1024] White has compensation.} a5 {[%emt 0:01:10]} 22. b4 $1 {[%emt 0:00:58]} O-O {[%emt 0:01:10]} (22... Ng6 $14) 23. b5 $16 {[%emt 0:00:35]} a4 {[%emt 0:03:09] [#]} 24. f4 $1 {[%emt 0:05:27] Against Be5} Ng6 {[%emt 0:04:28]} 25. f5 {[%emt 0:03:52]} ({White has to play} 25. e5 $16) 25... Be5 {[%emt 0:01:47]} ({Black should play} 25... exf5 $11 26. exf5 Ne7) 26. Ra2 {[%emt 0:00:47]} (26. Ra3 $1 $14 Ne7 27. f6) 26... exf5 $11 {[%emt 0:02:28]} 27. exf5 {[%emt 0:00:07]} Ne7 {[%emt 0:00:42]} 28. Bd3 {[%emt 0:01:19][%cal Of5f6]} (28. f6 {is interesting.} Nd5 29. Bd2 Rfc8 30. Bd3) 28... g6 {[%emt 0:07:47]} 29. fxg6 {[%emt 0:00:40]} hxg6 {[%emt 0:01:09]} 30. Rh4 $36 {[%emt 0:01:16][%mdl 2048] White has the initiative.} a3 {[%emt 0:01:32]} 31. Bc1 $1 {[%emt 0:01:27]} Nd5 {[%emt 0:03:31]} 32. Rxa3 {[%emt 0:00:04]} Rxa3 {[%emt 0:01:49]} 33. Bxa3 {[%emt 0:00:01]} Ra8 {[%emt 0:00:47]} 34. Bc1 {[%emt 0:02:39]} Ra2 {[%emt 0:06:36] Hoping for ...Nc3+.} 35. Bd2 {[%emt 0:01:02] Strongly threatening Bc4.} Ra1+ {[%emt 0:00:32]} 36. Kc2 {[%emt 0:00:26]} (36. Ke2 $16) 36... Ra2+ {[%emt 0:00:18] Weighted Error Value: White=0.19 (very precise) /Black=0.18 (very precise)} 1/2-1/2

[Event "1st Doppelbauer Kiel IM 2022"]
[Site "Kiel"]
[Date "2022.07.02"]
[Round "5.4"]
[White "Kopylov, Daniel"]
[Black "Fromm, Marius"]
[Result "0-1"]
[ECO "C90"]
[WhiteElo "2292"]
[BlackElo "2317"]
[Annotator "TA"]
[PlyCount "86"]
[EventDate "2022.06.30"]
[EventType "tourn"]
[EventCountry "GER"]
[SourceTitle "playchess.com"]
[Source "ChessBase"]
[SourceQuality "1"]
[TimeControl "40/5400+30:1800+30"]

{[%evp 25,86,24,27,14,27,0,20,19,27,-51,-39,-73,-73,-100,-80,-77,-73,-223,-237,-234,-221,-229,-232,-229,-207,-195,-166,-162,-163,-170,-170,-170,-148,-141,-158,-160,-158,-161,-176,-241,-235,-372,-363,-643,-629,-713,-524,-549,-436,-424,-442,-780,-777,-761,-714,-792,-716,-2412,-848,-811,-789,-736,-704]} 1. e4 {[%emt 0:00:03]} e5 {[%emt 0:00:04]} 2. Nf3 {[%emt 0:00:13]} Nc6 {[%emt 0:00:05]} 3. Bb5 {[%emt 0:00:17]} a6 {[%emt 0:00:03]} 4. Ba4 {[%emt 0:00:08]} Nf6 {[%emt 0:00:05]} 5. O-O {[%emt 0:00:08]} Be7 {[%emt 0:00:05]} 6. Re1 {[%emt 0:00:17]} b5 {[%emt 0:00:07]} 7. Bb3 {[%emt 0:00:07]} O-O {[%emt 0:00:06]} 8. a4 {[%emt 0:00:44]} Bb7 {[%emt 0:00:09]} 9. d3 {[%emt 0:07:38]} d6 {[%emt 0:00:05]} 10. c3 {[%emt 0:01:34]} Na5 {[%emt 0:00:37]} 11. Bc2 {[%emt 0:00:52]} c5 {[%emt 0:00:22]} 12. Nbd2 {[%emt 0:04:42][%cal Bb1d2,Bd2f1,Bf1g3,Bg3f5][%mdl 32]} Nc6 {[%emt 0:04:45]} 13. Nf1 {[%emt 0:01:38]} Re8 {[%emt 0:01:49]} 14. Ng3 {[%emt 0:01:02] C90: Closed Ruy Lopez with 7...d6: Early deviations.} Bf8 {[%emt 0:10:13]} 15. h3 {[%emt 0:04:18]} b4 {[%emt 0:07:31] [#]} 16. Bg5 $146 {[%emt 0:15:18] The position is equal.} ({Predecessor:} 16. Bb3 Bc8 17. d4 bxc3 18. dxc5 dxc5 19. Bxf7+ Kxf7 20. Qb3+ Ke7 21. Ng5 Nd4 22. Qf7+ {½-½ (49) Bese,I (1495)-Akti,E (1770) Konya 2019}) 16... h6 {[%emt 0:00:40]} 17. Be3 {[%emt 0:02:55]} (17. Bh4 $11) 17... d5 $15 {[%emt 0:15:44]} 18. Nf5 {[%emt 0:03:02]} Na5 {[%emt 0:11:20]} 19. Bd2 {[%emt 0:10:49]} dxe4 {[%emt 0:04:30]} (19... c4 {keeps more tension.} 20. d4 exd4 21. e5 bxc3 22. bxc3 d3) 20. dxe4 {[%emt 0:00:36]} b3 {[%emt 0:00:11]} 21. Bxb3 {[%emt 0:14:40]} (21. Bb1 $17) 21... Nxb3 $19 {[%emt 0:00:22]} 22. Qxb3 {[%emt 0:00:07]} Bxe4 {[%emt 0:00:14]} 23. Rxe4 {[%emt 0:05:50]} Nxe4 {[%emt 0:00:05]} 24. Rd1 {[%emt 0:02:07]} Rb8 {[%emt 0:00:46]} 25. Qc2 {[%emt 0:01:08]} Nxd2 {[%emt 0:00:04]} 26. Nxd2 {[%emt 0:02:53]} Qb6 {[%emt 0:00:03]} 27. Nc4 {[%emt 0:08:55]} Qe6 {[%emt 0:00:04]} 28. Nfe3 {[%emt 0:00:17]} Rbd8 {[%emt 0:00:21]} 29. Rxd8 {[%emt 0:03:47]} Rxd8 {[%emt 0:00:01]} 30. Qe4 {[%emt 0:00:08]} Re8 {[%emt 0:00:03]} 31. g4 {[%emt 0:01:20]} g6 {[%emt 0:00:14]} 32. Nd5 {[%emt 0:03:13]} (32. a5 {was called for.}) 32... f5 {[%emt 0:03:55][%cal Bf7f5,Bf5f4][%mdl 32]} 33. Qg2 {[%emt 0:01:04]} (33. gxf5 {was the only chance.} gxf5 34. Qg2+ Kf7 35. Qf3) 33... Rd8 {[%emt 0:02:12]} 34. Nce3 {[%emt 0:03:09]} (34. Ncb6) 34... f4 {[%emt 0:00:52] Black is clearly winning.} 35. Nc7 {[%emt 0:00:09]} Qb3 {[%emt 0:02:34]} 36. Nf1 {[%emt 0:02:50]} Qxa4 {[%emt 0:02:05] [#] ...e4 is the strong threat.} 37. Ne6 {[%emt 0:00:01]} Rd6 {[%emt 0:00:47]} 38. Nxc5 {[%emt 0:00:17]} (38. Nxf8 $142 Kxf8 39. Qa8+ Qe8 40. Qa7) 38... Qc4 {[%emt 0:00:50]} 39. Ne4 {[%emt 0:00:58]} Rd1 {[%emt 0:01:20][%cal Of4f3] ( -> ...f3!)} 40. Ned2 {[%emt 0:00:42]} Qd3 {[%emt 0:00:10] aiming for ...Qxd2.} 41. Nf3 {[%emt 0:02:23] [#]} Rxf1+ $1 {[%emt 0:00:28][%mdl 512]} 42. Qxf1 {[%emt 0:00:03]} Qxf3 {[%emt 0:00:06]} 43. Qxa6 {[%emt 0:00:03]} Kh7 {[%emt 0:00:24] White got outplayed after the opening.  Weighted Error Value: White=0.85/Black=0.29 (precise)} 0-1

[Event "1st Doppelbauer Kiel IM 2022"]
[Site "Kiel"]
[Date "2022.07.02"]
[Round "5.5"]
[White "Barseghyan, Armen Ar."]
[Black "Arndt, Magnus"]
[Result "1/2-1/2"]
[ECO "E05"]
[WhiteElo "2378"]
[BlackElo "2343"]
[Annotator "TA"]
[PlyCount "40"]
[EventDate "2022.06.30"]
[EventType "tourn"]
[EventCountry "GER"]
[SourceTitle "playchess.com"]
[Source "ChessBase"]
[SourceQuality "1"]
[TimeControl "40/5400+30:1800+30"]

{[%evp 20,40,17,12,21,6,29,-15,-16,-22,-16,-16,-7,-8,-9,-10,-12,-16,0,0,0,-17,-17]} 1. d4 {[%emt 0:00:05]} Nf6 {[%emt 0:00:06]} 2. Nf3 {[%emt 0:00:12]} e6 {[%emt 0:00:25]} 3. g3 {[%emt 0:01:44]} d5 {[%emt 0:00:14]} 4. Bg2 {[%emt 0:00:13]} Be7 {[%emt 0:00:05]} 5. O-O {[%emt 0:00:17]} O-O {[%emt 0:00:05]} 6. c4 {[%emt 0:00:17]} dxc4 {[%emt 0:00:08]} 7. Qc2 {[%emt 0:00:14]} a6 {[%emt 0:02:31]} 8. a4 {[%emt 0:00:16]} Bd7 {[%emt 0:00:06]} 9. Qxc4 {[%emt 0:00:26]} Bc6 {[%emt 0:00:09]} 10. Bg5 {[%emt 0:01:02]} Nbd7 {[%emt 0:04:19]} 11. Nc3 {[%emt 0:01:32]} Rc8 {[%emt 0:11:19] E05: Open Catalan: 5 Nf3 Be7.} 12. Rfd1 {[%emt 0:03:02]} Nd5 {[%emt 0:03:05] [#]} 13. Bf4 $146 {[%emt 0:05:56]} ({Predecessor:} 13. Bxe7 Qxe7 14. e3 N7b6 15. Qb3 Nxc3 16. bxc3 Qe8 17. a5 Ba4 18. Qb1 Bxd1 19. Ng5 {½-½ (54) Kosakowski,J (2441)-Dziewonski,D (1983) Poronin 2021}) 13... Nxf4 {[%emt 0:12:07] The position is equal.} 14. gxf4 {[%emt 0:01:15]} Nf6 {[%emt 0:00:07] Against d5} 15. e3 {[%emt 0:01:23]} a5 {[%emt 0:03:13]} 16. Rac1 {[%emt 0:06:53]} Bxf3 {[%emt 0:12:09]} 17. Bxf3 {[%emt 0:00:16]} c6 {[%emt 0:00:03]} 18. Qb3 {[%emt 0:03:43]} Nd5 {[%emt 0:06:23]} 19. Nxd5 {[%emt 0:03:14]} cxd5 {[%emt 0:00:43]} 20. Qb5 {[%emt 0:00:46]} Rc7 {[%emt 0:11:21] An interesting draw.  Weighted Error Value: White=0.10 (very precise) /Black=0.08 (flawless)} 1/2-1/2

[Event "1st Doppelbauer Kiel IM 2022"]
[Site "Kiel"]
[Date "2022.07.03"]
[Round "6.1"]
[White "Beeck, Mats"]
[Black "Arndt, Magnus"]
[Result "0-1"]
[ECO "C88"]
[WhiteElo "2169"]
[BlackElo "2343"]
[Annotator "TA"]
[PlyCount "94"]
[EventDate "2022.06.30"]
[EventType "tourn"]
[EventCountry "GER"]
[SourceTitle "playchess.com"]
[Source "ChessBase"]
[SourceQuality "1"]
[TimeControl "40/5400+30:1800+30"]

{[%evp 18,94,24,33,50,27,45,38,38,40,34,46,46,6,6,7,12,9,10,8,5,0,0,0,4,0,1,2,6,0,52,52,57,57,41,-103,-104,-152,-141,-146,-143,-133,-152,-143,-136,-133,-95,-87,-97,-99,-90,-91,-65,-61,-70,-101,-54,-61,-39,-53,0,0,0,-56,-55,-81,-93,-88,-86,-88,-32,-62,-48,-47,-52,-242,-233,-288,-263]} 1. e4 {[%emt 0:03:30]} e5 {[%emt 0:00:13]} 2. Nf3 {[%emt 0:00:05]} Nc6 {[%emt 0:00:04]} 3. Bb5 {[%emt 0:00:06]} a6 {[%emt 0:00:04]} 4. Ba4 {[%emt 0:00:06]} Nf6 {[%emt 0:00:04]} 5. O-O {[%emt 0:00:12]} Be7 {[%emt 0:00:14]} 6. Re1 {[%emt 0:00:07]} b5 {[%emt 0:00:05]} 7. Bb3 {[%emt 0:00:05]} O-O {[%emt 0:00:05]} 8. a4 {[%emt 0:00:03]} Bb7 {[%emt 0:02:01]} 9. d3 {[%emt 0:00:08]} d6 {[%emt 0:00:03]} 10. Bd2 {[%emt 1:31:08]} h6 {[%emt 0:12:35] C88: Closed Ruy Lopez: Anti-Marshall Systems.} 11. h3 {[%emt 0:00:00]} (11. Na3 $5 {[%cal Ra4b5]}) 11... Qd7 {[%emt 0:06:50]} 12. Nc3 {[%emt 0:00:00] [#]} Nd8 $146 {[%emt 0:10:52] White is slightly better.} ({Predecessor:} 12... Na5 13. Ba2 b4 14. Ne2 c5 15. Ng3 Rfe8 16. c3 bxc3 17. Bxc3 Nc6 18. Nd2 d5 19. exd5 Nxd5 {1-0 (59) Fedoseev,V (2690)-Niemann,H (2680) Dubai 2021}) 13. axb5 {[%emt 0:00:00]} axb5 {[%emt 0:00:14]} 14. Rxa8 {[%emt 0:00:00]} Bxa8 {[%emt 0:00:04]} 15. Qa1 {[%emt 0:00:00]} Ne6 {[%emt 0:07:32]} 16. Bxe6 {[%emt 0:00:00]} fxe6 {[%emt 0:00:47]} 17. b4 {[%emt 0:00:00]} Bc6 {[%emt 0:09:01]} 18. Qb2 {[%emt 0:00:00]} Ra8 {[%emt 0:06:16]} 19. d4 {[%emt 0:00:00]} exd4 {[%emt 0:02:03]} 20. Nxd4 {[%emt 0:00:00]} e5 {[%emt 0:12:00]} 21. Qb3+ {[%emt 0:00:00]} Kh7 {[%emt 0:00:50]} 22. Nxc6 {[%emt 0:00:00]} Qxc6 {[%emt 0:00:02]} 23. Qf7 {[%emt 0:00:00]} Bf8 {[%emt 0:13:31]} (23... Qd7 $11) 24. Re3 $14 {[%emt 0:00:00]} Qc4 {[%emt 0:01:16]} 25. Qxc4 {[%emt 0:00:00]} bxc4 {[%emt 0:00:02]} 26. Nd5 {[%emt 0:00:00]} (26. b5 $14 {stays ahead.}) 26... c6 $36 {[%emt 0:02:06][%mdl 2048] Black is really pushing.} 27. Nb6 {[%emt 0:00:00]} (27. Nc3 $142) 27... Ra2 {[%emt 0:00:47]} 28. Nxc4 {[%emt 0:00:00]} Rxc2 {[%emt 0:00:07]} 29. Rc3 {[%emt 0:00:00] [#]} Ra2 {[%emt 0:00:58]} ({Weaker is} 29... Rxc3 30. Bxc3 Nxe4 31. Bb2 $11) 30. Be3 {[%emt 0:00:00]} Nxe4 {[%emt 0:00:11]} 31. Rc1 {[%emt 0:00:00]} Ra4 {[%emt 0:01:58]} 32. Nb6 {[%emt 0:00:00][%csl LRa4,LRc6]} Rxb4 {[%emt 0:00:23]} 33. Rxc6 {[%emt 0:00:00]} Rb1+ {[%emt 0:03:17]} 34. Kh2 {[%emt 0:00:00]} Nf6 {[%emt 0:04:20] Threatens to win with ...d5.} 35. Nc4 {[%emt 0:00:00]} Rd1 $1 {[%emt 0:00:40]} 36. Rc8 {[%emt 0:00:00]} Kg8 {[%emt 0:01:35]} ({Better is} 36... Be7 $17 37. Rc7 Nd5) 37. Rd8 $15 {[%emt 0:00:00]} Rd5 $1 {[%emt 0:01:07]} 38. Nb6 {[%emt 0:00:00]} Rd1 {[%emt 0:01:36]} (38... Ra5 $5 {[%cal Rg8f7]}) 39. Nc4 $1 {[%emt 0:00:00]} Rd5 {[%emt 0:00:07]} 40. Nb6 $1 {[%emt 0:00:00]} Ra5 {[%emt 0:02:05]} 41. Nc4 {[%emt 0:31:33]} Ra6 {[%emt 0:31:12]} 42. f4 {[%emt 0:02:29]} e4 {[%emt 0:00:00]} 43. f5 {[%emt 0:00:00]} Rc6 {[%emt 0:00:00]} (43... Kf7 $17 44. Bb6 Nd5) 44. Na5 {[%emt 0:00:00]} Rc7 {[%emt 0:00:00] aiming for ...Nd5.} 45. Bf4 {[%emt 0:00:00]} Rd7 {[%emt 0:00:00]} 46. Rc8 {[%emt 0:00:00] [#]} (46. Ra8 $15) 46... Nd5 $19 {[%emt 0:00:00]} 47. Kg3 {[%emt 0:00:00]} Ne7 {[%emt 0:00:00] Weighted Error Value: White=0.21 (precise) /Black=0.10 (very precise)} 0-1

[Event "1st Doppelbauer Kiel IM 2022"]
[Site "Kiel"]
[Date "2022.07.03"]
[Round "6.2"]
[White "Fromm, Marius"]
[Black "Barseghyan, Armen Ar."]
[Result "0-1"]
[ECO "B31"]
[WhiteElo "2317"]
[BlackElo "2378"]
[Annotator "TA"]
[PlyCount "94"]
[EventDate "2022.06.30"]
[EventType "tourn"]
[EventCountry "GER"]
[SourceTitle "playchess.com"]
[Source "ChessBase"]
[SourceQuality "1"]
[TimeControl "40/5400+30:1800+30"]

{[%evp 11,94,23,29,33,32,31,37,26,34,37,39,37,18,32,171,46,43,36,128,121,102,13,15,0,0,0,28,28,35,31,25,0,0,-57,-43,-79,-70,-250,-256,-335,-332,-310,-278,-308,-313,-326,-331,-317,-310,-311,-175,-183,-181,-169,-183,-214,-162,-291,-291,-401,-397,-386,-329,-314,-285,-283,-283,-982,-935,-814,-656,-1204,-1197,-1175,-1109,-1883,-1568,-2283,-2132,-8025,-6014,-29981,-29981,-29980,-29980]} 1. e4 {[%emt 0:00:02]} c5 {[%emt 0:00:05]} 2. Nf3 {[%emt 0:00:04]} Nc6 {[%emt 0:00:04]} 3. Bb5 {[%emt 0:00:05]} g6 {[%emt 0:00:04]} 4. O-O {[%emt 0:00:07]} Bg7 {[%emt 0:00:06]} 5. Nc3 {[%emt 0:00:10]} Nf6 {[%emt 0:00:11]} 6. e5 {[%emt 0:00:09]} Ng4 {[%emt 0:00:04]} 7. Bxc6 {[%emt 0:00:04] B31: Sicilian: 2...Nc6 3 Bb5 g6.} dxc6 {[%emt 0:00:06]} 8. Re1 {[%emt 0:00:05]} Nh6 {[%emt 0:00:22]} 9. d3 {[%emt 0:00:23] White is slightly better.} Nf5 {[%emt 0:10:03]} 10. Ne4 {[%emt 0:01:19]} b6 {[%emt 0:00:46] [#]} 11. a4 $146 {[%emt 0:04:10][%cal Oa4a5]} ({Predecessor:} 11. Bf4 Be6 12. Qd2 Qd7 13. a3 Rd8 14. Rad1 h6 15. h3 g5 16. Bh2 Nd4 17. Nxd4 Qxd4 {0-1 (65) Cornette,M (2558)-Abasov,N (2632) chess24.com INT 2019}) 11... a5 {[%emt 0:01:14]} 12. c3 {[%emt 0:06:11]} Qd5 {[%emt 0:17:53]} ({Better is} 12... O-O $14) 13. Nf6+ {[%emt 0:17:08]} exf6 $14 {[%emt 0:00:06]} 14. exf6+ {[%emt 0:00:06][%mdl 64] [#] Discovered Attack} Kf8 {[%emt 0:00:01]} (14... Be6 $1 $14 15. fxg7 Nxg7) 15. fxg7+ $16 {[%emt 0:00:10]} Kxg7 {[%emt 0:00:04]} 16. Re5 {[%emt 0:05:41]} ({White should play} 16. g4 $16) 16... Qd8 $11 {[%emt 0:01:08]} 17. Qe2 {[%emt 0:12:33]} f6 {[%emt 0:17:09]} 18. Re4 {[%emt 0:00:11]} Ba6 {[%emt 0:00:09]} 19. c4 {[%emt 0:01:06] Threatens to win with g4.} Re8 {[%emt 0:00:09]} 20. Bf4 {[%emt 0:50:46]} Rxe4 {[%emt 0:09:34]} 21. Qxe4 {[%emt 0:00:00]} Ra7 {[%emt 0:01:33]} 22. Qe2 {[%emt 0:00:00]} ({Wrong is} 22. Qxc6 $2 Rd7 23. Ng5 fxg5 $19) (22. Re1 $1 $11) 22... Re7 $36 {[%emt 0:03:40][%mdl 2048] Black has some pressure.} 23. Qd2 {[%emt 0:00:00]} Rd7 {[%emt 0:03:20] Black converts the advantage convincingly.} 24. Rd1 $2 {[%emt 0:00:00]} (24. Qe2 $15) 24... Bxc4 $1 $19 {[%emt 0:00:44][%cal Rd7d3]} 25. Ne1 {[%emt 0:00:00]} Bb3 {[%emt 0:01:05][%csl LRa4,LRd1]} 26. Ra1 {[%emt 0:00:00]} Rd4 {[%emt 0:06:32]} 27. Ra3 {[%emt 0:00:00]} Bxa4 {[%emt 0:03:40]} 28. Nf3 {[%emt 0:00:00]} Rb4 {[%emt 0:00:05]} 29. Qc1 {[%emt 0:00:00]} Nd4 {[%emt 0:00:48]} 30. Nxd4 {[%emt 0:00:00]} Rxd4 {[%emt 0:00:49]} (30... Qxd4 $142 31. g3 Bb5) 31. Be3 {[%emt 0:00:00] [#]} Rxd3 {[%emt 0:00:08]} 32. Rxd3 {[%emt 0:00:00]} Qxd3 {[%emt 0:00:04][%mdl 4096] Endgame KQB-KQB} 33. Bd2 {[%emt 0:00:00]} Kf7 {[%emt 0:01:04]} 34. h3 {[%emt 0:00:00]} (34. Bf4 {was called for.}) 34... Qc2 {[%emt 0:01:01]} 35. Qxc2 {[%emt 0:00:00]} Bxc2 {[%emt 0:00:03] KB-KB} 36. Kf1 {[%emt 0:00:00]} Ke6 {[%emt 0:00:10]} 37. Ke2 {[%emt 0:00:00]} Kd5 {[%emt 0:00:38] aiming for ...Kc4.} 38. Bc3 {[%emt 0:00:00]} f5 {[%emt 0:00:04] And now ...Kc4 would win.} 39. h4 $2 {[%emt 0:00:00]} (39. Kd2 Bb3 40. Bf6) 39... Kc4 {[%emt 0:00:36]} 40. Kd2 {[%emt 0:00:00]} Be4 {[%emt 0:00:18]} 41. g3 {[%emt 0:14:05]} a4 {[%emt 0:30:25]} 42. Be5 {[%emt 0:01:01]} Kb3 {[%emt 0:00:11]} 43. Kc1 {[%emt 0:00:52]} b5 {[%emt 0:00:06][%cal Bb6b5,Bb5b4][%mdl 32]} 44. Bd6 {[%emt 0:00:18]} c4 {[%emt 0:00:04][%cal Bc5c4,Bc4c3][%mdl 32] ...b4 is the strong threat.} 45. Be5 {[%emt 0:00:20]} b4 {[%emt 0:00:05] ( -> ...c3)} 46. Kd2 {[%emt 0:00:21] Inhibits c3+.} a3 {[%emt 0:00:10]} 47. bxa3 {[%emt 0:00:02]} c3+ {[%emt 0:00:07] Weighted Error Value: White=0.80/Black=0.32} 0-1